[Event "GrandPrix_29.05"]
[Site "Chess.com"]
[Date "2020.05.29"]
[Round "5"]
[White "abraham1982"]
[Black "PeshkaTheGreat"]
[Result "1-0"]
[WhiteElo "2220"]
[BlackElo "2185"]
[TimeControl "600+2"]
[EndTime "11:34:28 PDT"]
[Termination "abraham1982 won by checkmate"]

1. e4 {[%clk 0:10:01.9]} 1... c5 {[%clk 0:09:57.4]} 2. c3 {[%clk 0:09:57.9]}
2... Nf6 {[%clk 0:09:53.4]} 3. e5 {[%clk 0:09:57.8]} 3... Nd5 {[%clk 0:09:53.1]}
4. Bc4 {[%clk 0:09:57]} 4... Nb6 {[%clk 0:09:41.3]} 5. Bb3 {[%clk 0:09:56.1]}
5... c4 {[%clk 0:09:35.9]} 6. Bc2 {[%clk 0:09:53]} 6... Nc6 {[%clk 0:09:37]} 7.
Nf3 {[%clk 0:09:51.6]} 7... d5 {[%clk 0:09:30.4]} 8. exd6 {[%clk 0:09:50.2]}
8... Qxd6 {[%clk 0:09:30.1]} 9. O-O {[%clk 0:09:49]} 9... Bg4 {[%clk 0:09:25.3]}
10. Qe2 {[%clk 0:09:38.6]} 10... g6 {[%clk 0:09:02.8]} 11. h3 {[%clk 0:09:35]}
11... Be6 {[%clk 0:08:58.8]} 12. Ng5 {[%clk 0:09:32.7]} 12... Bd5 {[%clk
0:08:55.3]} 13. b3 {[%clk 0:09:30.4]} 13... Bg7 {[%clk 0:08:48.8]} 14. Na3
{[%clk 0:09:23.9]} 14... h6 {[%clk 0:08:37.5]} 15. Ne4 {[%clk 0:09:20.6]} 15...
Qe6 {[%clk 0:08:35.8]} 16. Nb5 {[%clk 0:09:12.3]} 16... O-O-O {[%clk 0:08:01.4]}
17. Re1 {[%clk 0:07:17.6]} 17... a6 {[%clk 0:06:43.9]} 18. Na3 {[%clk
0:06:13.6]} 18... f5 {[%clk 0:05:32.3]} 19. Ng3 {[%clk 0:04:49.8]} 19... Qxe2
{[%clk 0:05:21.8]} 20. Nxe2 {[%clk 0:04:42.5]} 20... e5 {[%clk 0:05:08]} 21. h4
{[%clk 0:04:16.7]} 21... Rhf8 {[%clk 0:04:26.9]} 22. h5 {[%clk 0:04:09.1]} 22...
g5 {[%clk 0:04:23.5]} 23. bxc4 {[%clk 0:03:48.9]} 23... Nxc4 {[%clk 0:04:22]}
24. d3 {[%clk 0:03:44.3]} 24... Nb6 {[%clk 0:04:11.9]} 25. Rb1 {[%clk
0:03:41.6]} 25... Nd7 {[%clk 0:04:01.6]} 26. Nc4 {[%clk 0:03:05.4]} 26... Bxc4
{[%clk 0:03:24.6]} 27. dxc4 {[%clk 0:03:02.4]} 27... e4 {[%clk 0:03:26.3]} 28.
Ba3 {[%clk 0:02:58.6]} 28... Rf7 {[%clk 0:03:21.2]} 29. Red1 {[%clk 0:02:26.4]}
29... Nde5 {[%clk 0:03:11.6]} 30. Rxd8+ {[%clk 0:02:12.5]} 30... Kxd8 {[%clk
0:03:09.2]} 31. Bb3 {[%clk 0:02:06.1]} 31... f4 {[%clk 0:02:28.7]} 32. Nd4
{[%clk 0:02:02.5]} 32... Nxd4 {[%clk 0:01:57.1]} 33. cxd4 {[%clk 0:01:59.7]}
33... Nc6 {[%clk 0:01:52.1]} 34. c5 {[%clk 0:01:50.6]} 34... Rd7 {[%clk
0:01:49.6]} 35. d5 {[%clk 0:01:49.9]} 35... Nd4 {[%clk 0:01:50.1]} 36. Bc4
{[%clk 0:01:45.9]} 36... e3 {[%clk 0:01:25.4]} 37. fxe3 {[%clk 0:01:39.7]} 37...
fxe3 {[%clk 0:01:27.3]} 38. d6 {[%clk 0:01:27.5]} 38... e2 {[%clk 0:00:59.4]}
39. Bb2 {[%clk 0:01:06.9]} 39... Nf3+ {[%clk 0:00:41.4]} 40. gxf3 {[%clk
0:01:03.5]} 40... Bxb2 {[%clk 0:00:42.9]} 41. Be6 {[%clk 0:00:57.9]} 41... Bd4+
{[%clk 0:00:21.4]} 42. Kg2 {[%clk 0:00:55.1]} 42... Bc3 {[%clk 0:00:11.6]} 43.
Bxd7 {[%clk 0:00:38.8]} 43... Kxd7 {[%clk 0:00:07.3]} 44. Kf2 {[%clk 0:00:29.6]}
44... e1=Q+ {[%clk 0:00:08.5]} 45. Rxe1 {[%clk 0:00:25.6]} 45... Bxe1+ {[%clk
0:00:10.4]} 46. Kxe1 {[%clk 0:00:26.1]} 46... b6 {[%clk 0:00:12.3]} 47. cxb6
{[%clk 0:00:21.1]} 47... Kxd6 {[%clk 0:00:13.8]} 48. f4 {[%clk 0:00:19.5]} 48...
gxf4 {[%clk 0:00:11.6]} 49. Kf2 {[%clk 0:00:20]} 49... Kc6 {[%clk 0:00:12.9]}
50. Kf3 {[%clk 0:00:20.4]} 50... Kxb6 {[%clk 0:00:13.5]} 51. Kxf4 {[%clk
0:00:20.7]} 51... Kb5 {[%clk 0:00:14.8]} 52. Kf5 {[%clk 0:00:20.4]} 52... Ka4
{[%clk 0:00:16.6]} 53. Kg6 {[%clk 0:00:21.2]} 53... Ka3 {[%clk 0:00:18.5]} 54.
Kxh6 {[%clk 0:00:20.1]} 54... Kxa2 {[%clk 0:00:20.4]} 55. Kg6 {[%clk 0:00:20.9]}
55... a5 {[%clk 0:00:22.3]} 56. h6 {[%clk 0:00:20.5]} 56... a4 {[%clk
0:00:24.2]} 57. h7 {[%clk 0:00:21.8]} 57... a3 {[%clk 0:00:25.3]} 58. h8=Q
{[%clk 0:00:20.8]} 58... Kb1 {[%clk 0:00:26.8]} 59. Qb8+ {[%clk 0:00:19.5]}
59... Ka1 {[%clk 0:00:26.5]} 60. Qe5+ {[%clk 0:00:18.5]} 60... Kb1 {[%clk
0:00:26.7]} 61. Qb5+ {[%clk 0:00:16.4]} 61... Ka1 {[%clk 0:00:26.8]} 62. Qf1+
{[%clk 0:00:15.5]} 62... Kb2 {[%clk 0:00:27.9]} 63. Qe2+ {[%clk 0:00:15.1]}
63... Ka1 {[%clk 0:00:27.4]} 64. Qd1+ {[%clk 0:00:14.5]} 64... Kb2 {[%clk
0:00:28]} 65. Qd2+ {[%clk 0:00:14.3]} 65... Kb3 {[%clk 0:00:26]} 66. Qc1 {[%clk
0:00:12.5]} 66... Ka2 {[%clk 0:00:21.6]} 67. Qc2+ {[%clk 0:00:11.3]} 67... Ka1
{[%clk 0:00:21.4]} 68. Kf5 {[%clk 0:00:11]} 68... a2 {[%clk 0:00:21.9]} 69. Qc1#
{[%clk 0:00:12]} 1-0

[Event "GrandPrix_29.05"]
[Site "Chess.com"]
[Date "2020.05.29"]
[Round "5"]
[White "Inkalubo"]
[Black "Mikhail_Golubev"]
[Result "1-0"]
[WhiteElo "1919"]
[BlackElo "2004"]
[TimeControl "600+2"]
[EndTime "11:34:30 PDT"]
[Termination "Inkalubo won on time"]

1. Nf3 {[%clk 0:10:00.7]} 1... d6 {[%clk 0:10:00.5]} 2. d4 {[%clk 0:10:00.6]}
2... Nf6 {[%clk 0:09:59.1]} 3. g3 {[%clk 0:10:00.9]} 3... g6 {[%clk 0:09:59.6]}
4. Bg2 {[%clk 0:10:01.7]} 4... Bg7 {[%clk 0:10:00.6]} 5. c4 {[%clk 0:10:01.6]}
5... O-O {[%clk 0:10:00.6]} 6. Nc3 {[%clk 0:10:02.2]} 6... Nbd7 {[%clk
0:10:00.1]} 7. O-O {[%clk 0:10:01.8]} 7... e5 {[%clk 0:10:01.1]} 8. e4 {[%clk
0:10:02.2]} 8... exd4 {[%clk 0:09:57.2]} 9. Nxd4 {[%clk 0:10:02.5]} 9... Re8
{[%clk 0:09:58]} 10. h3 {[%clk 0:10:02.3]} 10... Nc5 {[%clk 0:09:48.8]} 11. Re1
{[%clk 0:10:03]} 11... Bd7 {[%clk 0:09:49.7]} 12. Bf4 {[%clk 0:07:29.6]} 12...
a6 {[%clk 0:09:20.9]} 13. Rc1 {[%clk 0:07:22.3]} 13... Rb8 {[%clk 0:09:09.2]}
14. b4 {[%clk 0:07:12.7]} 14... Ne6 {[%clk 0:09:07.4]} 15. Be3 {[%clk
0:07:13.9]} 15... b5 {[%clk 0:08:34.5]} 16. Nxe6 {[%clk 0:06:39.7]} 16... Bxe6
{[%clk 0:08:32.3]} 17. c5 {[%clk 0:06:40.7]} 17... dxc5 {[%clk 0:08:26.1]} 18.
Bxc5 {[%clk 0:06:40.7]} 18... Nd7 {[%clk 0:08:00.9]} 19. Ba7 {[%clk 0:06:09.9]}
19... Ra8 {[%clk 0:07:06.4]} 20. Bd4 {[%clk 0:05:53.7]} 20... Ne5 {[%clk
0:06:56.2]} 21. Nd5 {[%clk 0:05:42.7]} 21... c6 {[%clk 0:06:36.7]} 22. Bxe5
{[%clk 0:05:36.5]} 22... Bxe5 {[%clk 0:06:22.1]} 23. Rxc6 {[%clk 0:05:36.8]}
23... a5 {[%clk 0:05:56.4]} 24. f4 {[%clk 0:04:08.7]} 24... Bg7 {[%clk 0:05:08]}
25. e5 {[%clk 0:03:25.4]} 25... axb4 {[%clk 0:05:06.6]} 26. Nc7 {[%clk
0:02:55.9]} 26... Bxa2 {[%clk 0:03:23.7]} 27. Nxa8 {[%clk 0:02:02.8]} 27... Qxa8
{[%clk 0:03:22.2]} 28. Rd6 {[%clk 0:01:38.6]} 28... Qa7+ {[%clk 0:03:03.9]} 29.
Kh2 {[%clk 0:01:38.8]} 29... Bc4 {[%clk 0:02:48.2]} 30. Qd4 {[%clk 0:01:25.4]}
30... Qxd4 {[%clk 0:02:34.5]} 31. Rxd4 {[%clk 0:01:25.6]} 31... b3 {[%clk
0:02:35.4]} 32. Red1 {[%clk 0:01:15.9]} 32... Bf8 {[%clk 0:02:28.3]} 33. Rd8
{[%clk 0:00:56]} 33... Rxd8 {[%clk 0:02:21.4]} 34. Rxd8 {[%clk 0:00:55.9]} 34...
b2 {[%clk 0:01:50.5]} 35. Be4 {[%clk 0:00:55.2]} 35... Ba2 {[%clk 0:01:38.8]}
36. Rd1 {[%clk 0:00:54.4]} 36... b4 {[%clk 0:01:25.5]} 37. Kg2 {[%clk
0:00:48.2]} 37... Bc5 {[%clk 0:00:47.5]} 38. Kf3 {[%clk 0:00:38.8]} 38... Bb3
{[%clk 0:00:35.7]} 39. Rd8+ {[%clk 0:00:36]} 39... Kg7 {[%clk 0:00:35.9]} 40.
Bb1 {[%clk 0:00:36.6]} 40... Bb6 {[%clk 0:00:26]} 41. Rb8 {[%clk 0:00:35.6]}
41... Bd1+ {[%clk 0:00:24.7]} 42. Ke4 {[%clk 0:00:33.3]} 42... Bc5 {[%clk
0:00:22.9]} 43. Rb5 {[%clk 0:00:24.9]} 43... Be7 {[%clk 0:00:14.9]} 44. Kd3
{[%clk 0:00:24.6]} 44... Bf3 {[%clk 0:00:09.7]} 45. Kc2 {[%clk 0:00:20.3]} 45...
Bg2 {[%clk 0:00:09.7]} 46. h4 {[%clk 0:00:20.9]} 46... Be4+ {[%clk 0:00:09]} 47.
Kxb2 {[%clk 0:00:21.6]} 47... Bc6 {[%clk 0:00:08.7]} 48. Rb6 {[%clk 0:00:21.9]}
48... Bd5 {[%clk 0:00:08.8]} 49. Bc2 {[%clk 0:00:21.4]} 49... Bc5 {[%clk
0:00:09.5]} 50. Rb5 {[%clk 0:00:14.3]} 50... Bd4+ {[%clk 0:00:10.1]} 51. Kb1
{[%clk 0:00:15]} 51... Be6 {[%clk 0:00:08.2]} 52. Rxb4 {[%clk 0:00:15.6]} 52...
Bf2 {[%clk 0:00:08.9]} 53. h5 {[%clk 0:00:12.7]} 53... Bxg3 {[%clk 0:00:08.8]}
54. hxg6 {[%clk 0:00:12.9]} 54... hxg6 {[%clk 0:00:09]} 55. Kc1 {[%clk
0:00:10.2]} 55... Kh6 {[%clk 0:00:06.7]} 56. Kd2 {[%clk 0:00:09.2]} 56... Bg4
{[%clk 0:00:06.3]} 57. Ke3 {[%clk 0:00:08.9]} 57... Kg7 {[%clk 0:00:06.7]} 58.
Be4 {[%clk 0:00:08.3]} 58... Bh2 {[%clk 0:00:06.3]} 59. Rb7 {[%clk 0:00:07.6]}
59... Bg1+ {[%clk 0:00:05.9]} 60. Kd3 {[%clk 0:00:05.4]} 60... Be6 {[%clk
0:00:07]} 61. Bc6 {[%clk 0:00:04.3]} 61... Bh2 {[%clk 0:00:05.1]} 62. Ke4 {[%clk
0:00:04.9]} 62... Bf5+ {[%clk 0:00:06]} 63. Kf3 {[%clk 0:00:03.3]} 63... Be6
{[%clk 0:00:06.1]} 64. Ra7 {[%clk 0:00:03.8]} 64... Bg1 {[%clk 0:00:06.6]} 65.
Rc7 {[%clk 0:00:04.5]} 65... Bb6 {[%clk 0:00:06.4]} 66. Rb7 {[%clk 0:00:05.1]}
66... Bc5 {[%clk 0:00:06.9]} 67. Ke4 {[%clk 0:00:05.8]} 67... Bg1 {[%clk
0:00:06.8]} 68. Bd5 {[%clk 0:00:06]} 68... Bxd5+ {[%clk 0:00:06.4]} 69. Kxd5
{[%clk 0:00:07.1]} 69... Bh2 {[%clk 0:00:06.7]} 70. e6 {[%clk 0:00:08.1]} 1-0

[Event "GrandPrix_29.05"]
[Site "Chess.com"]
[Date "2020.05.29"]
[Round "5"]
[White "rfhfb"]
[Black "ly4o"]
[Result "1/2-1/2"]
[WhiteElo "2127"]
[BlackElo "2022"]
[TimeControl "600+2"]
[EndTime "11:34:40 PDT"]
[Termination "Game drawn by repetition"]

1. d4 {[%clk 0:10:01.9]} 1... Nf6 {[%clk 0:10:00.4]} 2. c4 {[%clk 0:10:01.5]}
2... e6 {[%clk 0:10:01.8]} 3. g3 {[%clk 0:10:02.3]} 3... c5 {[%clk 0:09:49]} 4.
d5 {[%clk 0:10:02]} 4... exd5 {[%clk 0:09:50.2]} 5. cxd5 {[%clk 0:10:03.9]} 5...
d6 {[%clk 0:09:52.1]} 6. Nc3 {[%clk 0:10:03.9]} 6... g6 {[%clk 0:09:51.9]} 7.
Bg2 {[%clk 0:10:05]} 7... Bg7 {[%clk 0:09:53]} 8. Nf3 {[%clk 0:10:06.6]} 8...
O-O {[%clk 0:09:54.2]} 9. O-O {[%clk 0:10:08.2]} 9... a6 {[%clk 0:09:55.7]} 10.
a4 {[%clk 0:10:09.2]} 10... Bf5 {[%clk 0:09:46]} 11. Nd2 {[%clk 0:09:57]} 11...
b6 {[%clk 0:09:01.2]} 12. e4 {[%clk 0:09:42.2]} 12... Bd7 {[%clk 0:09:02.2]} 13.
Nc4 {[%clk 0:09:42.9]} 13... Qc7 {[%clk 0:09:00.5]} 14. Bf4 {[%clk 0:09:42.1]}
14... Ne8 {[%clk 0:09:00.1]} 15. e5 {[%clk 0:09:41.2]} 15... Ra7 {[%clk
0:08:52.5]} 16. exd6 {[%clk 0:09:09.5]} 16... Qd8 {[%clk 0:08:50.1]} 17. Qb3
{[%clk 0:08:43.1]} 17... Rb7 {[%clk 0:08:49.2]} 18. Rfe1 {[%clk 0:08:16]} 18...
b5 {[%clk 0:08:37.6]} 19. a5 {[%clk 0:08:15.5]} 19... Bf5 {[%clk 0:08:13.7]} 20.
Ne3 {[%clk 0:07:13.8]} 20... Bc8 {[%clk 0:08:06.7]} 21. d7 {[%clk 0:06:41]}
21... Nxd7 {[%clk 0:07:49.8]} 22. d6 {[%clk 0:06:40.9]} 22... g5 {[%clk
0:07:30]} 23. Nf5 {[%clk 0:03:36.6]} 23... gxf4 {[%clk 0:07:21.1]} 24. Ne4
{[%clk 0:03:01.2]} 24... c4 {[%clk 0:07:05.2]} 25. Qb4 {[%clk 0:02:44.8]} 25...
f3 {[%clk 0:06:57.9]} 26. Ne7+ {[%clk 0:02:42.9]} 26... Kh8 {[%clk 0:06:58.3]}
27. Nc6 {[%clk 0:02:43.8]} 27... fxg2 {[%clk 0:06:34.4]} 28. Nxd8 {[%clk
0:02:43.2]} 28... Ne5 {[%clk 0:06:35.9]} 29. Kxg2 {[%clk 0:02:12.6]} 29... Nd3
{[%clk 0:06:33.5]} 30. Qd2 {[%clk 0:02:06]} 30... Nxe1+ {[%clk 0:06:34.1]} 31.
Rxe1 {[%clk 0:02:07.9]} 31... Rd7 {[%clk 0:06:34.8]} 32. Nc6 {[%clk 0:01:49.8]}
32... Bb7 {[%clk 0:06:35.8]} 33. Qd5 {[%clk 0:01:02.4]} 33... Nc7 {[%clk
0:06:36.2]} 34. Qf5 {[%clk 0:00:48.7]} 34... Bxc6 {[%clk 0:06:19.8]} 35. dxc7
{[%clk 0:00:48.5]} 35... Rxc7 {[%clk 0:06:21.7]} 36. f3 {[%clk 0:00:41.8]} 36...
Bxe4 {[%clk 0:06:07.2]} 37. Rxe4 {[%clk 0:00:23.3]} 37... h6 {[%clk 0:06:08]}
38. Re2 {[%clk 0:00:21.6]} 38... b4 {[%clk 0:06:09.2]} 39. Qf4 {[%clk
0:00:13.8]} 39... Rfc8 {[%clk 0:06:09.5]} 40. Qd6 {[%clk 0:00:15]} 40... c3
{[%clk 0:05:26.2]} 41. bxc3 {[%clk 0:00:16.9]} 41... bxc3 {[%clk 0:05:28.1]} 42.
Rc2 {[%clk 0:00:17.8]} 42... Rc6 {[%clk 0:05:29.7]} 43. Qd7 {[%clk 0:00:18.1]}
43... Kg8 {[%clk 0:05:29.3]} 44. h4 {[%clk 0:00:18.8]} 44... R8c7 {[%clk
0:05:30.4]} 45. Qd8+ {[%clk 0:00:17.7]} 45... Kh7 {[%clk 0:05:31.7]} 46. Kh3
{[%clk 0:00:18]} 46... Bf6 {[%clk 0:05:29.3]} 47. Qd3+ {[%clk 0:00:17.1]} 47...
Kg7 {[%clk 0:05:30.6]} 48. g4 {[%clk 0:00:13.6]} 48... Rb7 {[%clk 0:05:26.9]}
49. Qd5 {[%clk 0:00:11]} 49... Rbc7 {[%clk 0:05:20]} 50. g5 {[%clk 0:00:11.7]}
50... hxg5 {[%clk 0:05:21.4]} 51. hxg5 {[%clk 0:00:13.2]} 51... Be7 {[%clk
0:05:23.1]} 52. Qe5+ {[%clk 0:00:10.7]} 52... Kg8 {[%clk 0:05:19.1]} 53. f4
{[%clk 0:00:10.7]} 53... Rc5 {[%clk 0:05:16.4]} 54. Qd4 {[%clk 0:00:04.6]} 54...
Rxa5 {[%clk 0:05:14.6]} 55. Qb6 {[%clk 0:00:05.7]} 55... Rac5 {[%clk 0:05:07.6]}
56. Qxa6 {[%clk 0:00:06.5]} 56... Rc4 {[%clk 0:05:08.8]} 57. Qa8+ {[%clk
0:00:05.2]} 57... Rc8 {[%clk 0:05:07]} 58. Qf3 {[%clk 0:00:07.1]} 58... Bd6
{[%clk 0:05:08.3]} 59. f5 {[%clk 0:00:05.9]} 59... R8c5 {[%clk 0:05:01.9]} 60.
g6 {[%clk 0:00:06.1]} 60... fxg6 {[%clk 0:04:56]} 61. fxg6 {[%clk 0:00:07.4]}
61... Rf4 {[%clk 0:04:57.6]} 62. Qd1 {[%clk 0:00:06.3]} 62... Rf6 {[%clk
0:04:44.7]} 63. Qd3 {[%clk 0:00:07.1]} 63... Rh5+ {[%clk 0:04:34.8]} 64. Kg4
{[%clk 0:00:08.3]} 64... Rh6 {[%clk 0:04:34.5]} 65. Qd5+ {[%clk 0:00:05.7]}
65... Kg7 {[%clk 0:04:35.1]} 66. Rxc3 {[%clk 0:00:07.3]} 66... Rfxg6+ {[%clk
0:04:32.1]} 67. Kf3 {[%clk 0:00:06.2]} 67... Rg3+ {[%clk 0:04:04.8]} 68. Ke2
{[%clk 0:00:06.1]} 68... Rxc3 {[%clk 0:03:52.4]} 69. Qd4+ {[%clk 0:00:06.9]}
69... Kf7 {[%clk 0:03:52.1]} 70. Qxc3 {[%clk 0:00:08]} 70... Re6+ {[%clk
0:03:51.8]} 71. Kf3 {[%clk 0:00:08.5]} 71... Rf6+ {[%clk 0:03:51.2]} 72. Kg4
{[%clk 0:00:09.6]} 72... Be7 {[%clk 0:03:51.8]} 73. Qc4+ {[%clk 0:00:10.3]}
73... Kg7 {[%clk 0:03:52.8]} 74. Qd4 {[%clk 0:00:11.1]} 74... Kf7 {[%clk
0:03:53.1]} 75. Qd5+ {[%clk 0:00:11.9]} 75... Kg7 {[%clk 0:03:53.1]} 76. Qd7
{[%clk 0:00:08.7]} 76... Kf7 {[%clk 0:03:53]} 77. Kh5 {[%clk 0:00:10]} 77... Kf8
{[%clk 0:03:48.6]} 78. Qc8+ {[%clk 0:00:09.7]} 78... Kg7 {[%clk 0:03:47.1]} 79.
Qg4+ {[%clk 0:00:09]} 79... Kf7 {[%clk 0:03:48.3]} 80. Qc4+ {[%clk 0:00:08.2]}
80... Kg7 {[%clk 0:03:49.3]} 81. Qd5 {[%clk 0:00:09.7]} 81... Rh6+ {[%clk
0:03:46.9]} 82. Kg4 {[%clk 0:00:11]} 82... Rg6+ {[%clk 0:03:48.4]} 83. Kf3
{[%clk 0:00:11.6]} 83... Rf6+ {[%clk 0:03:49.5]} 84. Ke4 {[%clk 0:00:13]} 84...
Kf8 {[%clk 0:03:49.2]} 85. Qh5 {[%clk 0:00:13.4]} 85... Kg7 {[%clk 0:03:42.8]}
86. Kd5 {[%clk 0:00:14.3]} 86... Rd6+ {[%clk 0:03:38.8]} 87. Ke5 {[%clk
0:00:14.6]} 87... Rf6 {[%clk 0:03:40.1]} 88. Qg4+ {[%clk 0:00:12.2]} 88... Kf7
{[%clk 0:03:39.7]} 89. Qh3 {[%clk 0:00:11.5]} 89... Kg7 {[%clk 0:03:38.6]} 90.
Qg2+ {[%clk 0:00:11.3]} 90... Kf7 {[%clk 0:03:36.8]} 91. Qg4 {[%clk 0:00:12.2]}
91... Bd6+ {[%clk 0:03:34.5]} 92. Kd5 {[%clk 0:00:12.8]} 92... Be7 {[%clk
0:03:35.9]} 93. Qh5+ {[%clk 0:00:08.3]} 93... Kg7 {[%clk 0:03:37]} 94. Ke5
{[%clk 0:00:08.5]} 94... Bd6+ {[%clk 0:03:38]} 95. Ke4 {[%clk 0:00:08.7]} 95...
Be7 {[%clk 0:03:39.6]} 96. Kd5 {[%clk 0:00:09.4]} 96... Rd6+ {[%clk 0:03:39.4]}
97. Kc4 {[%clk 0:00:10.6]} 97... Rf6 {[%clk 0:03:40.8]} 98. Qd5 {[%clk
0:00:11.6]} 98... Rf4+ {[%clk 0:03:38.5]} 99. Kd3 {[%clk 0:00:12.6]} 99... Rf6
{[%clk 0:03:39.6]} 100. Ke4 {[%clk 0:00:14]} 100... Kf8 {[%clk 0:03:34.9]} 101.
Qa8+ {[%clk 0:00:12.3]} 101... Kf7 {[%clk 0:03:34.2]} 102. Qh8 {[%clk
0:00:13.1]} 102... Re6+ {[%clk 0:03:35.1]} 103. Kf5 {[%clk 0:00:10.8]} 103...
Rf6+ {[%clk 0:03:36.2]} 104. Ke5 {[%clk 0:00:09.2]} 104... Re6+ {[%clk
0:03:36.2]} 105. Kd5 {[%clk 0:00:10.6]} 105... Rd6+ {[%clk 0:03:37.3]} 106. Kc4
{[%clk 0:00:12]} 106... Rf6 {[%clk 0:03:35.9]} 107. Qh7+ {[%clk 0:00:12.4]}
107... Kf8 {[%clk 0:03:34]} 108. Kd5 {[%clk 0:00:13]} 108... Rd6+ {[%clk
0:03:34.8]} 109. Ke5 {[%clk 0:00:14.4]} 109... Rf6 {[%clk 0:03:35.3]} 110. Qh8+
{[%clk 0:00:08.6]} 110... Kf7 {[%clk 0:03:36.4]} 111. Qh7+ {[%clk 0:00:10.5]}
111... Kf8 {[%clk 0:03:37.8]} 112. Ke4 {[%clk 0:00:06.4]} 112... Re6+ {[%clk
0:03:37.2]} 113. Kd5 {[%clk 0:00:07.4]} 113... Rd6+ {[%clk 0:03:38.5]} 114. Ke5
{[%clk 0:00:08.7]} 114... Rf6 {[%clk 0:03:39.7]} 1/2-1/2

[Event "GrandPrix_29.05"]
[Site "Chess.com"]
[Date "2020.05.29"]
[Round "5"]
[White "Igor_Lysyj"]
[Black "Micki-taryan"]
[Result "1/2-1/2"]
[WhiteElo "2410"]
[BlackElo "2502"]
[TimeControl "600+2"]
[EndTime "11:34:43 PDT"]
[Termination "Game drawn - insufficient material"]

1. d4 {[%clk 0:09:56.7]} 1... Nf6 {[%clk 0:09:53]} 2. c4 {[%clk 0:09:57.1]} 2...
e6 {[%clk 0:09:51.1]} 3. Nf3 {[%clk 0:09:57.3]} 3... d5 {[%clk 0:09:44.2]} 4. g3
{[%clk 0:09:57.7]} 4... Be7 {[%clk 0:09:42.7]} 5. Bg2 {[%clk 0:09:57.9]} 5...
O-O {[%clk 0:09:43.5]} 6. O-O {[%clk 0:09:58.4]} 6... dxc4 {[%clk 0:09:34.9]} 7.
Ne5 {[%clk 0:09:59.1]} 7... Nbd7 {[%clk 0:09:21.8]} 8. Nxc4 {[%clk 0:09:57.5]}
8... Nb6 {[%clk 0:09:23.4]} 9. Ne5 {[%clk 0:09:51.6]} 9... Nfd7 {[%clk
0:08:51.5]} 10. Nd3 {[%clk 0:09:40]} 10... Bf6 {[%clk 0:08:39.4]} 11. Nf4 {[%clk
0:08:59.4]} 11... c5 {[%clk 0:08:20.7]} 12. dxc5 {[%clk 0:08:48.1]} 12... Nxc5
{[%clk 0:08:22.6]} 13. Nc3 {[%clk 0:08:47.8]} 13... Qe7 {[%clk 0:07:15]} 14. Be3
{[%clk 0:07:41.9]} 14... Bd7 {[%clk 0:06:56]} 15. Bxc5 {[%clk 0:07:38.1]} 15...
Qxc5 {[%clk 0:06:57.9]} 16. Ne4 {[%clk 0:07:38.7]} 16... Qe7 {[%clk 0:06:58.1]}
17. Nxf6+ {[%clk 0:07:36.1]} 17... Qxf6 {[%clk 0:07:00]} 18. Qb3 {[%clk
0:06:29.3]} 18... Rac8 {[%clk 0:05:40]} 19. Rac1 {[%clk 0:05:48.6]} 19... e5
{[%clk 0:04:43.3]} 20. Nd3 {[%clk 0:05:33.5]} 20... Rxc1 {[%clk 0:04:17.6]} 21.
Rxc1 {[%clk 0:05:33]} 21... Bg4 {[%clk 0:04:19.1]} 22. Bxb7 {[%clk 0:03:30.1]}
22... Bxe2 {[%clk 0:04:12.6]} 23. Re1 {[%clk 0:03:30.6]} 23... Bxd3 {[%clk
0:03:55.6]} 24. Qxd3 {[%clk 0:03:31.3]} 24... g6 {[%clk 0:03:40.6]} 25. Qa6
{[%clk 0:03:24]} 25... Rd8 {[%clk 0:03:30.2]} 26. Qxa7 {[%clk 0:03:12.1]} 26...
Rd2 {[%clk 0:03:30.9]} 27. Qb8+ {[%clk 0:03:06.9]} 27... Kg7 {[%clk 0:03:32.3]}
28. Qxe5 {[%clk 0:02:43]} 28... Rxb2 {[%clk 0:03:15.7]} 29. Qxf6+ {[%clk
0:02:34.2]} 29... Kxf6 {[%clk 0:03:17.6]} 30. Ra1 {[%clk 0:02:33.9]} 30... Ke5
{[%clk 0:03:06.4]} 31. Bc6 {[%clk 0:02:28.3]} 31... Kd6 {[%clk 0:03:00.8]} 32.
Be8 {[%clk 0:02:21.9]} 32... Ke7 {[%clk 0:03:01.8]} 33. Bc6 {[%clk 0:02:05.5]}
33... Kd6 {[%clk 0:03:03.1]} 34. Bf3 {[%clk 0:02:00.1]} 34... Na4 {[%clk
0:02:42.8]} 35. Bd1 {[%clk 0:01:52.3]} 35... Nc3 {[%clk 0:02:17.6]} 36. Bb3
{[%clk 0:01:49.8]} 36... Ke7 {[%clk 0:02:18.7]} 37. Bc4 {[%clk 0:01:43.8]} 37...
h5 {[%clk 0:02:12.6]} 38. a3 {[%clk 0:01:24.6]} 38... Kf6 {[%clk 0:02:01.2]} 39.
Bf1 {[%clk 0:01:19.8]} 39... Na4 {[%clk 0:01:56.9]} 40. Rd1 {[%clk 0:01:15.7]}
40... Ra2 {[%clk 0:01:34.9]} 41. Rd3 {[%clk 0:01:13.9]} 41... Kg7 {[%clk
0:01:28]} 42. Re3 {[%clk 0:01:11.3]} 42... Nb6 {[%clk 0:01:21.5]} 43. Bb5 {[%clk
0:01:09.9]} 43... g5 {[%clk 0:01:15.8]} 44. h3 {[%clk 0:01:05.9]} 44... Rb2
{[%clk 0:01:11.9]} 45. Bc6 {[%clk 0:00:53.9]} 45... Rc2 {[%clk 0:01:00.4]} 46.
Bb5 {[%clk 0:00:51.8]} 46... Rb2 {[%clk 0:01:00.4]} 47. Bf1 {[%clk 0:00:51.1]}
47... Ra2 {[%clk 0:00:44]} 48. Rb3 {[%clk 0:00:49.2]} 48... Nd7 {[%clk
0:00:40.6]} 49. Rb5 {[%clk 0:00:28.5]} 49... Kf6 {[%clk 0:00:41.1]} 50. Ra5
{[%clk 0:00:26.5]} 50... Ne5 {[%clk 0:00:42.2]} 51. Kg2 {[%clk 0:00:26.7]} 51...
g4 {[%clk 0:00:43.5]} 52. hxg4 {[%clk 0:00:27.2]} 52... Nxg4 {[%clk 0:00:45.4]}
53. Rxh5 {[%clk 0:00:22.5]} 53... Rxf2+ {[%clk 0:00:45.6]} 54. Kg1 {[%clk
0:00:23.2]} 54... Rf3 {[%clk 0:00:44.2]} 55. Be2 {[%clk 0:00:19.5]} 55... Rxg3+
{[%clk 0:00:43.1]} 56. Kf1 {[%clk 0:00:20.3]} 56... Ne5 {[%clk 0:00:43.8]} 57.
Rh6+ {[%clk 0:00:19.4]} 57... Kg5 {[%clk 0:00:39.3]} 58. Ra6 {[%clk 0:00:20.8]}
58... f5 {[%clk 0:00:40.6]} 59. Kf2 {[%clk 0:00:21.4]} 59... Rb3 {[%clk
0:00:41]} 60. Ra8 {[%clk 0:00:21.1]} 60... Kf4 {[%clk 0:00:41.7]} 61. a4 {[%clk
0:00:21.5]} 61... Rb2 {[%clk 0:00:42.5]} 62. a5 {[%clk 0:00:16.1]} 62... Nc6
{[%clk 0:00:31.2]} 63. a6 {[%clk 0:00:13.5]} 63... Nd4 {[%clk 0:00:32.2]} 64.
Re8 {[%clk 0:00:14.3]} 64... Ra2 {[%clk 0:00:33.6]} 65. Re7 {[%clk 0:00:14.5]}
65... Nxe2 {[%clk 0:00:23.8]} 66. Rxe2 {[%clk 0:00:15.1]} 66... Rxa6 {[%clk
0:00:25.3]} 67. Rb2 {[%clk 0:00:16.1]} 67... Ra3 {[%clk 0:00:19.9]} 68. Rb4+
{[%clk 0:00:16.6]} 68... Kg5 {[%clk 0:00:20.9]} 69. Rc4 {[%clk 0:00:17.7]} 69...
Rb3 {[%clk 0:00:20.7]} 70. Ra4 {[%clk 0:00:17.9]} 70... Rc3 {[%clk 0:00:21.5]}
71. Rb4 {[%clk 0:00:18.9]} 71... f4 {[%clk 0:00:22.7]} 72. Rb8 {[%clk
0:00:18.9]} 72... Rc2+ {[%clk 0:00:24.2]} 73. Kf3 {[%clk 0:00:19.4]} 73... Rc3+
{[%clk 0:00:26.1]} 74. Kf2 {[%clk 0:00:20.5]} 74... Kf5 {[%clk 0:00:27]} 75.
Rf8+ {[%clk 0:00:20.6]} 75... Ke5 {[%clk 0:00:28.6]} 76. Re8+ {[%clk 0:00:21.5]}
76... Kd5 {[%clk 0:00:30.2]} 77. Rd8+ {[%clk 0:00:22.5]} 77... Ke4 {[%clk
0:00:30.3]} 78. Re8+ {[%clk 0:00:23.6]} 78... Kd3 {[%clk 0:00:31.4]} 79. Kf3
{[%clk 0:00:23.4]} 79... Rc1 {[%clk 0:00:28.3]} 80. Rd8+ {[%clk 0:00:23.3]}
80... Kc2 {[%clk 0:00:29.9]} 81. Rc8+ {[%clk 0:00:24.2]} 81... Kb1 {[%clk
0:00:31.8]} 82. Rxc1+ {[%clk 0:00:24.6]} 82... Kxc1 {[%clk 0:00:33.7]} 83. Kxf4
{[%clk 0:00:25.7]} 1/2-1/2